[Event "GrandPrix_29.05"]
[Site "Chess.com"]
[Date "2020.05.29"]
[Round "7"]
[White "rfhfb"]
[Black "MaxVavulin"]
[Result "1-0"]
[WhiteElo "2111"]
[BlackElo "1932"]
[TimeControl "600+2"]
[EndTime "12:31:00 PDT"]
[Termination "rfhfb won by resignation"]

1. d4 {[%clk 0:10:01.9]} 1... Nf6 {[%clk 0:09:49.4]} 2. c4 {[%clk 0:09:56.6]}
2... e6 {[%clk 0:09:49.6]} 3. g3 {[%clk 0:09:57.4]} 3... c5 {[%clk 0:09:49.6]}
4. d5 {[%clk 0:09:58.3]} 4... exd5 {[%clk 0:09:48.5]} 5. cxd5 {[%clk 0:10:00.2]}
5... Bd6 {[%clk 0:09:48.9]} 6. Nc3 {[%clk 0:09:22.7]} 6... O-O {[%clk
0:09:49.3]} 7. Bg2 {[%clk 0:09:22.8]} 7... Re8 {[%clk 0:09:49.7]} 8. e4 {[%clk
0:09:22.7]} 8... Bc7 {[%clk 0:09:44.5]} 9. Nge2 {[%clk 0:09:23.3]} 9... d6
{[%clk 0:09:45.4]} 10. O-O {[%clk 0:09:24.1]} 10... a6 {[%clk 0:09:47]} 11. a4
{[%clk 0:09:24.6]} 11... Nbd7 {[%clk 0:09:46.1]} 12. h3 {[%clk 0:09:20.8]} 12...
Nf8 {[%clk 0:09:46.7]} 13. Kh2 {[%clk 0:09:21.5]} 13... Bd7 {[%clk 0:09:47.3]}
14. f4 {[%clk 0:08:25.3]} 14... Rb8 {[%clk 0:09:47.5]} 15. a5 {[%clk 0:05:36.5]}
15... Ng6 {[%clk 0:09:25.4]} 16. g4 {[%clk 0:05:33.9]} 16... h6 {[%clk
0:08:24.5]} 17. Ng3 {[%clk 0:04:36.5]} 17... Bxa5 {[%clk 0:08:14.6]} 18. g5
{[%clk 0:04:35.7]} 18... hxg5 {[%clk 0:08:10.3]} 19. fxg5 {[%clk 0:04:37.6]}
19... Nh7 {[%clk 0:08:08.6]} 20. Qh5 {[%clk 0:04:31.3]} 20... b5 {[%clk
0:05:54.4]} 21. Bd2 {[%clk 0:04:21.3]} 21... b4 {[%clk 0:05:47.6]} 22. Rxf7
{[%clk 0:03:21.9]} 22... Nhf8 {[%clk 0:04:31.9]} 23. Rxg7+ {[%clk 0:02:18.2]}
23... Kxg7 {[%clk 0:04:32.6]} 24. Qh6+ {[%clk 0:02:19.5]} 24... Kg8 {[%clk
0:04:23.8]} 25. Nh5 {[%clk 0:02:19.9]} 25... Qe7 {[%clk 0:04:12.7]} 26. Rf1
{[%clk 0:01:42.9]} 26... Qe5+ {[%clk 0:01:40]} 27. Kh1 {[%clk 0:01:35.4]} 27...
Qd4 {[%clk 0:01:07]} 28. Ne2 {[%clk 0:01:00]} 28... Qh8 {[%clk 0:00:44]} 29.
Rxf8+ {[%clk 0:00:30]} 29... Nxf8 {[%clk 0:00:44.1]} 30. Nf6+ {[%clk 0:00:30.6]}
1-0

[Event "GrandPrix_29.05"]
[Site "Chess.com"]
[Date "2020.05.29"]
[Round "7"]
[White "OparinGrigoriy"]
[Black "Bosiocic"]
[Result "0-1"]
[WhiteElo "2504"]
[BlackElo "2732"]
[TimeControl "600+2"]
[EndTime "12:31:01 PDT"]
[Termination "Bosiocic won by resignation"]

1. Nf3 {[%clk 0:10:01.9]} 1... d6 {[%clk 0:10:00.9]} 2. d4 {[%clk 0:10:02.6]}
2... Nf6 {[%clk 0:09:59.2]} 3. g3 {[%clk 0:10:04.1]} 3... g6 {[%clk 0:09:59.3]}
4. Bg2 {[%clk 0:10:05.7]} 4... Bg7 {[%clk 0:10:00.2]} 5. c4 {[%clk 0:10:07.2]}
5... c6 {[%clk 0:10:00.8]} 6. O-O {[%clk 0:10:08.1]} 6... O-O {[%clk 0:10:01]}
7. Nc3 {[%clk 0:10:09]} 7... Bf5 {[%clk 0:10:02.1]} 8. Ng5 {[%clk 0:10:10.2]}
8... h6 {[%clk 0:09:56.2]} 9. e4 {[%clk 0:10:10.8]} 9... Bg4 {[%clk 0:09:55.1]}
10. Nf3 {[%clk 0:10:11.1]} 10... Qc8 {[%clk 0:09:53.8]} 11. Re1 {[%clk 0:10:10]}
11... e5 {[%clk 0:09:39]} 12. d5 {[%clk 0:10:08.1]} 12... cxd5 {[%clk
0:09:36.1]} 13. cxd5 {[%clk 0:10:08.1]} 13... Na6 {[%clk 0:09:35.6]} 14. Be3
{[%clk 0:10:02.9]} 14... Qd7 {[%clk 0:09:28]} 15. Rc1 {[%clk 0:10:01.2]} 15...
Rfc8 {[%clk 0:09:28]} 16. Qd2 {[%clk 0:09:37.4]} 16... Nc5 {[%clk 0:09:22.7]}
17. Nh4 {[%clk 0:08:43.6]} 17... g5 {[%clk 0:08:54.1]} 18. Bxc5 {[%clk
0:08:29.7]} 18... Rxc5 {[%clk 0:08:48.9]} 19. Nf3 {[%clk 0:08:30.5]} 19... Rac8
{[%clk 0:08:33.4]} 20. Qd3 {[%clk 0:08:12.9]} 20... b5 {[%clk 0:08:09.9]} 21. a3
{[%clk 0:08:08]} 21... a5 {[%clk 0:08:06.8]} 22. Ra1 {[%clk 0:06:10.7]} 22...
Qb7 {[%clk 0:08:05.5]} 23. Nd2 {[%clk 0:06:03.8]} 23... Qb6 {[%clk 0:07:42.2]}
24. Bf1 {[%clk 0:05:47.9]} 24... Bd7 {[%clk 0:07:35.5]} 25. Nb3 {[%clk
0:05:45.8]} 25... R5c7 {[%clk 0:06:57.5]} 26. Nxb5 {[%clk 0:05:44.5]} 26... Ng4
{[%clk 0:06:48.3]} 27. Re3 {[%clk 0:04:26]} 27... Nxe3 {[%clk 0:05:33.4]} 28.
Qxe3 {[%clk 0:04:27.9]} 28... Qxe3 {[%clk 0:05:21.5]} 29. fxe3 {[%clk
0:04:29.8]} 29... Bxb5 {[%clk 0:05:08.9]} 30. Bxb5 {[%clk 0:04:31.7]} 30... Rc2
{[%clk 0:05:07]} 31. Rb1 {[%clk 0:04:26.5]} 31... a4 {[%clk 0:04:35.1]} 32. Bxa4
{[%clk 0:04:24.4]} 32... Rb8 {[%clk 0:04:34.8]} 33. Na5 {[%clk 0:03:18]} 33...
Rcxb2 {[%clk 0:04:26.2]} 34. Rxb2 {[%clk 0:03:19.9]} 34... Rxb2 {[%clk
0:04:26.1]} 35. Bc6 {[%clk 0:03:17.8]} 35... Rc2 {[%clk 0:04:14.5]} 36. a4
{[%clk 0:03:11.2]} 36... g4 {[%clk 0:04:12.9]} 37. Nb7 {[%clk 0:03:10.8]} 37...
Bf8 {[%clk 0:04:07.6]} 38. a5 {[%clk 0:03:05.6]} 38... Ra2 {[%clk 0:04:04]} 39.
Bd7 {[%clk 0:02:27.2]} 39... h5 {[%clk 0:03:57.6]} 40. Bb5 {[%clk 0:01:53.9]}
40... Bh6 {[%clk 0:03:43.3]} 41. Kf1 {[%clk 0:01:40.3]} 41... Bxe3 {[%clk
0:03:37.2]} 42. a6 {[%clk 0:01:39.8]} 42... Rf2+ {[%clk 0:02:41.6]} 43. Ke1
{[%clk 0:01:39.5]} 43... Rxh2 {[%clk 0:02:40.4]} 44. Nxd6 {[%clk 0:01:40.6]}
44... h4 {[%clk 0:02:06.5]} 45. Nf5 {[%clk 0:01:31.5]} 45... Bf2+ {[%clk
0:02:06.2]} 46. Kf1 {[%clk 0:00:55.5]} 46... hxg3 {[%clk 0:02:05.5]} 47. d6
{[%clk 0:00:51.5]} 47... Rh1+ {[%clk 0:01:56.5]} 48. Ke2 {[%clk 0:00:52.6]}
48... g2 {[%clk 0:01:40.9]} 49. d7 {[%clk 0:00:45.8]} 49... Bb6 {[%clk
0:01:39.2]} 50. a7 {[%clk 0:00:43.1]} 50... Ra1 {[%clk 0:01:39.4]} 0-1

[Event "GrandPrix_29.05"]
[Site "Chess.com"]
[Date "2020.05.29"]
[Round "7"]
[White "SacrificeGod"]
[Black "Velis23"]
[Result "0-1"]
[WhiteElo "2277"]
[BlackElo "2174"]
[TimeControl "600+2"]
[EndTime "12:31:01 PDT"]
[Termination "Velis23 won by resignation"]

1. e4 {[%clk 0:10:01.9]} 1... d5 {[%clk 0:09:54.2]} 2. exd5 {[%clk 0:10:01.4]}
2... Qxd5 {[%clk 0:09:55]} 3. Nc3 {[%clk 0:10:02]} 3... Qd8 {[%clk 0:09:55.9]}
4. d4 {[%clk 0:10:02.4]} 4... Nf6 {[%clk 0:09:57.3]} 5. Nf3 {[%clk 0:10:02.8]}
5... Bg4 {[%clk 0:09:58.2]} 6. h3 {[%clk 0:09:52.1]} 6... Bxf3 {[%clk
0:09:58.8]} 7. Qxf3 {[%clk 0:09:52]} 7... c6 {[%clk 0:10:00.2]} 8. Be3 {[%clk
0:09:51]} 8... e6 {[%clk 0:10:01.6]} 9. Bd3 {[%clk 0:09:41.6]} 9... Nbd7 {[%clk
0:09:59]} 10. O-O-O {[%clk 0:09:34.2]} 10... Be7 {[%clk 0:09:50.1]} 11. g4
{[%clk 0:09:32.6]} 11... Nd5 {[%clk 0:09:46.6]} 12. Nxd5 {[%clk 0:09:30.8]}
12... cxd5 {[%clk 0:09:45.4]} 13. Qg2 {[%clk 0:09:07.9]} 13... Rc8 {[%clk
0:09:26.8]} 14. f4 {[%clk 0:09:05.7]} 14... Qa5 {[%clk 0:08:27.4]} 15. Kb1
{[%clk 0:09:03.4]} 15... Nb6 {[%clk 0:08:28.3]} 16. f5 {[%clk 0:08:54.4]} 16...
Nc4 {[%clk 0:08:20.1]} 17. Bxc4 {[%clk 0:08:02.1]} 17... Rxc4 {[%clk 0:08:14]}
18. fxe6 {[%clk 0:08:02.5]} 18... fxe6 {[%clk 0:08:12.2]} 19. Bc1 {[%clk
0:07:38.6]} 19... O-O {[%clk 0:08:06.1]} 20. Qe2 {[%clk 0:07:36.5]} 20... Rc6
{[%clk 0:07:59.7]} 21. Rhf1 {[%clk 0:07:32.8]} 21... Ra6 {[%clk 0:07:45.8]} 22.
a3 {[%clk 0:07:20.6]} 22... Rb6 {[%clk 0:07:45.3]} 23. Ka2 {[%clk 0:07:07.8]}
23... Qa4 {[%clk 0:07:07.5]} 24. Rxf8+ {[%clk 0:06:55]} 24... Bxf8 {[%clk
0:07:07.2]} 25. Rf1 {[%clk 0:04:18.5]} 25... Qxd4 {[%clk 0:05:51.3]} 26. Qf3
{[%clk 0:04:07.1]} 26... Qf6 {[%clk 0:05:51.6]} 27. Qxf6 {[%clk 0:03:48.3]}
27... gxf6 {[%clk 0:05:52.1]} 28. Rxf6 {[%clk 0:03:47.3]} 28... Bg7 {[%clk
0:05:44.2]} 29. Rf2 {[%clk 0:03:46.6]} 29... e5 {[%clk 0:05:39.2]} 30. c3 {[%clk
0:03:46.1]} 30... d4 {[%clk 0:05:31.3]} 31. cxd4 {[%clk 0:03:45.4]} 31... exd4
{[%clk 0:05:31.6]} 32. h4 {[%clk 0:03:26.2]} 32... Re6 {[%clk 0:05:15.5]} 33. g5
{[%clk 0:02:38.2]} 33... Re1 {[%clk 0:04:29.3]} 34. Bf4 {[%clk 0:02:20.8]} 34...
d3 {[%clk 0:04:20.5]} 35. Kb3 {[%clk 0:01:59]} 35... Re2 {[%clk 0:03:33.4]} 36.
Rxe2 {[%clk 0:01:48.5]} 36... dxe2 {[%clk 0:03:34.1]} 37. Bg3 {[%clk 0:01:49.4]}
37... Kf7 {[%clk 0:03:29.2]} 38. Kc2 {[%clk 0:01:49.5]} 38... Kg6 {[%clk
0:03:16.5]} 39. b3 {[%clk 0:01:48.3]} 39... Kh5 {[%clk 0:03:16.8]} 40. Kd2
{[%clk 0:01:37.9]} 40... Kg4 {[%clk 0:03:16.8]} 41. Be1 {[%clk 0:01:28.5]} 41...
Kf3 {[%clk 0:03:02.9]} 42. h5 {[%clk 0:01:17.2]} 42... Kg4 {[%clk 0:03:02.7]}
43. g6 {[%clk 0:00:35.7]} 43... h6 {[%clk 0:03:02.2]} 44. Kxe2 {[%clk
0:00:32.3]} 44... Kxh5 {[%clk 0:03:02.6]} 45. a4 {[%clk 0:00:21.4]} 45... Kxg6
{[%clk 0:03:02.1]} 46. b4 {[%clk 0:00:22.6]} 46... Kf5 {[%clk 0:03:02.4]} 47. b5
{[%clk 0:00:23.7]} 47... Ke4 {[%clk 0:03:00.3]} 48. a5 {[%clk 0:00:18.7]} 48...
a6 {[%clk 0:02:57.2]} 49. bxa6 {[%clk 0:00:19.2]} 49... bxa6 {[%clk 0:02:57.7]}
50. Bb4 {[%clk 0:00:18.9]} 50... Kd4 {[%clk 0:02:42.3]} 51. Be7 {[%clk
0:00:17.5]} 51... Kc4 {[%clk 0:02:34.8]} 52. Kf3 {[%clk 0:00:12.1]} 52... Bc3
{[%clk 0:02:33.6]} 53. Bd8 {[%clk 0:00:12.5]} 53... Kb5 {[%clk 0:02:31.3]} 0-1

[Event "GrandPrix_29.05"]
[Site "Chess.com"]
[Date "2020.05.29"]
[Round "7"]
[White "cassoulet"]
[Black "GrishaTheChamp"]
[Result "0-1"]
[WhiteElo "2023"]
[BlackElo "2186"]
[TimeControl "600+2"]
[EndTime "12:31:04 PDT"]
[Termination "GrishaTheChamp won by resignation"]

1. e4 {[%clk 0:10:01.9]} 1... c5 {[%clk 0:09:52.5]} 2. Nf3 {[%clk 0:10:01.6]}
2... d6 {[%clk 0:09:51.4]} 3. d4 {[%clk 0:10:02.2]} 3... cxd4 {[%clk 0:09:52.8]}
4. Nxd4 {[%clk 0:10:04.1]} 4... Nf6 {[%clk 0:09:54.2]} 5. Nc3 {[%clk 0:10:05.5]}
5... Nc6 {[%clk 0:09:55.4]} 6. g3 {[%clk 0:10:04.1]} 6... e5 {[%clk 0:09:47.3]}
7. Nde2 {[%clk 0:10:03.3]} 7... Be6 {[%clk 0:09:44.9]} 8. Bg2 {[%clk 0:10:04.3]}
8... Be7 {[%clk 0:09:45.9]} 9. O-O {[%clk 0:10:05.4]} 9... O-O {[%clk
0:09:45.9]} 10. h3 {[%clk 0:10:06.4]} 10... a5 {[%clk 0:09:46.7]} 11. g4 {[%clk
0:10:03.3]} 11... h6 {[%clk 0:09:46.8]} 12. Be3 {[%clk 0:10:01.6]} 12... a4
{[%clk 0:09:47.8]} 13. Nd5 {[%clk 0:09:59.4]} 13... Nd7 {[%clk 0:09:33.6]} 14.
c4 {[%clk 0:09:55.7]} 14... Bg5 {[%clk 0:09:32.5]} 15. Nec3 {[%clk 0:09:38.9]}
15... Bxe3 {[%clk 0:09:24.9]} 16. fxe3 {[%clk 0:09:38.6]} 16... Nc5 {[%clk
0:09:25.9]} 17. Qe2 {[%clk 0:09:32.2]} 17... Qg5 {[%clk 0:09:08.5]} 18. Rad1
{[%clk 0:09:30.6]} 18... Rad8 {[%clk 0:09:04.1]} 19. Nb5 {[%clk 0:09:11.5]}
19... h5 {[%clk 0:08:55.2]} 20. gxh5 {[%clk 0:09:08.1]} 20... Bxh3 {[%clk
0:08:51.6]} 21. Nbc3 {[%clk 0:07:42.3]} 21... Bg4 {[%clk 0:08:48.7]} 22. Qe1
{[%clk 0:07:36]} 22... Bxd1 {[%clk 0:08:48.6]} 23. Qxd1 {[%clk 0:07:37.9]} 23...
f5 {[%clk 0:08:22.8]} 24. exf5 {[%clk 0:07:14.3]} 24... Rxf5 {[%clk 0:08:24.7]}
25. Rxf5 {[%clk 0:07:12.4]} 25... Qxf5 {[%clk 0:08:26.6]} 26. b4 {[%clk
0:06:50.1]} 26... axb3 {[%clk 0:08:26.2]} 27. axb3 {[%clk 0:06:52]} 27... Rf8
{[%clk 0:08:05]} 28. Qe2 {[%clk 0:06:35.4]} 28... Nxb3 {[%clk 0:07:57.2]} 29.
Ne4 {[%clk 0:06:36.3]} 29... Nc5 {[%clk 0:07:43.8]} 30. Nxd6 {[%clk 0:06:32.2]}
30... Qg5 {[%clk 0:07:22.4]} 31. Kh2 {[%clk 0:06:02.4]} 31... e4 {[%clk
0:06:49.2]} 32. Kh1 {[%clk 0:05:01.2]} 32... Qe5 {[%clk 0:06:03.5]} 33. Nb5
{[%clk 0:04:48.4]} 33... Nd3 {[%clk 0:05:38.8]} 34. Nbc3 {[%clk 0:04:21.8]}
34... Nf2+ {[%clk 0:05:28.4]} 35. Kg1 {[%clk 0:04:22.1]} 35... Qg3 {[%clk
0:05:05.4]} 36. Nf4 {[%clk 0:03:31.8]} 36... Rxf4 {[%clk 0:05:00.2]} 37. exf4
{[%clk 0:03:32.7]} 37... Nh3+ {[%clk 0:05:01.7]} 38. Kh1 {[%clk 0:03:33.6]}
38... Qxc3 {[%clk 0:05:03.3]} 39. Bxe4 {[%clk 0:03:00.9]} 39... Nxf4 {[%clk
0:04:54.5]} 40. Bd5+ {[%clk 0:03:01.2]} 40... Kf8 {[%clk 0:04:36.4]} 41. Qe4
{[%clk 0:02:57.7]} 41... Qh3+ {[%clk 0:04:29.4]} 42. Kg1 {[%clk 0:02:58.6]}
42... Qg3+ {[%clk 0:03:40.1]} 43. Kh1 {[%clk 0:02:56.8]} 43... Qh4+ {[%clk
0:03:23.4]} 44. Kg1 {[%clk 0:02:56]} 44... Nh3+ {[%clk 0:03:24.7]} 45. Kg2
{[%clk 0:02:46.6]} 45... Qxe4+ {[%clk 0:03:22.7]} 46. Bxe4 {[%clk 0:02:48.5]}
46... Ng5 {[%clk 0:03:24.1]} 47. Bd5 {[%clk 0:02:47.5]} 47... Ke7 {[%clk
0:03:25.1]} 48. Kg3 {[%clk 0:02:48.8]} 48... Kf6 {[%clk 0:03:26.5]} 49. Kf4
{[%clk 0:02:47.6]} 49... Ne6+ {[%clk 0:03:15.2]} 50. Ke4 {[%clk 0:02:44.4]}
50... Nc5+ {[%clk 0:03:15.8]} 51. Kf4 {[%clk 0:02:43.9]} 51... Ne7 {[%clk
0:03:16.4]} 52. Bf3 {[%clk 0:02:40]} 52... b6 {[%clk 0:03:16.3]} 53. Be2 {[%clk
0:02:31.9]} 53... Nc8 {[%clk 0:03:16.5]} 54. Bf3 {[%clk 0:02:27.5]} 54... Nd6
{[%clk 0:03:16.8]} 55. Bd5 {[%clk 0:02:28.4]} 55... Nb3 {[%clk 0:03:05.9]} 56.
Bg8 {[%clk 0:01:51.3]} 56... Na5 {[%clk 0:03:03.8]} 57. Ke3 {[%clk 0:01:50.6]}
57... Naxc4+ {[%clk 0:02:59.8]} 58. Kd4 {[%clk 0:01:52.5]} 58... Ne5 {[%clk
0:03:00.2]} 59. Kd5 {[%clk 0:01:50.2]} 59... Nf5 {[%clk 0:02:52.9]} 60. Bh7
{[%clk 0:01:50.2]} 60... Nd7 {[%clk 0:02:25.5]} 61. Kc6 {[%clk 0:01:46.4]} 61...
Nf8 {[%clk 0:02:26]} 62. h6 {[%clk 0:01:14.9]} 62... gxh6 {[%clk 0:02:21.8]} 63.
Bg8 {[%clk 0:01:15.9]} 63... Ne7+ {[%clk 0:02:22.2]} 64. Kxb6 {[%clk 0:01:17.8]}
64... Nxg8 {[%clk 0:02:23.5]} 65. Kc5 {[%clk 0:01:19.7]} 65... Kf5 {[%clk
0:02:22.7]} 66. Kd4 {[%clk 0:01:21.6]} 66... Kf4 {[%clk 0:02:24]} 67. Kd3 {[%clk
0:01:22.4]} 67... Kf3 {[%clk 0:02:23.8]} 68. Kd2 {[%clk 0:01:23.5]} 68... h5
{[%clk 0:02:25.2]} 69. Ke1 {[%clk 0:01:24.8]} 69... Kg2 {[%clk 0:02:26.1]} 70.
Ke2 {[%clk 0:01:25.8]} 70... h4 {[%clk 0:02:27.6]} 0-1

[Event "GrandPrix_29.05"]
[Site "Chess.com"]
[Date "2020.05.29"]
[Round "7"]
[White "iceboy88"]
[Black "ZoranRunic1"]
[Result "0-1"]
[WhiteElo "2438"]
[BlackElo "2423"]
[TimeControl "600+2"]
[EndTime "12:31:05 PDT"]
[Termination "ZoranRunic1 won on time"]

1. Nf3 {[%clk 0:10:01.9]} 1... Nf6 {[%clk 0:10:00.3]} 2. c4 {[%clk 0:10:02.5]}
2... g6 {[%clk 0:10:01]} 3. Nc3 {[%clk 0:10:01.6]} 3... Bg7 {[%clk 0:10:01.5]}
4. g3 {[%clk 0:10:02.1]} 4... O-O {[%clk 0:10:01.4]} 5. Bg2 {[%clk 0:10:03.4]}
5... d6 {[%clk 0:10:01.7]} 6. d4 {[%clk 0:10:04.2]} 6... Nc6 {[%clk 0:10:01.8]}
7. O-O {[%clk 0:10:05.2]} 7... a6 {[%clk 0:10:02]} 8. Bf4 {[%clk 0:10:03.6]}
8... Rb8 {[%clk 0:09:58.3]} 9. Rc1 {[%clk 0:10:04.3]} 9... b5 {[%clk 0:09:52.8]}
10. c5 {[%clk 0:09:28.2]} 10... b4 {[%clk 0:09:14.9]} 11. Na4 {[%clk 0:09:13.6]}
11... Na5 {[%clk 0:09:05.6]} 12. d5 {[%clk 0:08:04.3]} 12... Bd7 {[%clk
0:08:28.4]} 13. c6 {[%clk 0:08:02]} 13... Bc8 {[%clk 0:08:21.1]} 14. b3 {[%clk
0:07:57.5]} 14... e6 {[%clk 0:07:23.2]} 15. dxe6 {[%clk 0:07:54.5]} 15... fxe6
{[%clk 0:07:23.5]} 16. Bg5 {[%clk 0:07:07.6]} 16... h6 {[%clk 0:06:22.9]} 17.
Be3 {[%clk 0:06:46.7]} 17... Qe8 {[%clk 0:05:55.8]} 18. Qc2 {[%clk 0:05:46.1]}
18... g5 {[%clk 0:05:15.6]} 19. h4 {[%clk 0:05:39.7]} 19... g4 {[%clk
0:05:08.6]} 20. Nd2 {[%clk 0:05:33.6]} 20... Nd5 {[%clk 0:04:58.4]} 21. Bxd5
{[%clk 0:05:21.4]} 21... exd5 {[%clk 0:04:56.7]} 22. Qd3 {[%clk 0:04:58.2]}
22... Rb5 {[%clk 0:04:43.9]} 23. Bd4 {[%clk 0:03:58.8]} 23... Bxd4 {[%clk
0:04:19.5]} 24. Qxd4 {[%clk 0:03:58.6]} 24... Nxc6 {[%clk 0:04:18.8]} 25. Qb2
{[%clk 0:03:49.2]} 25... Rf7 {[%clk 0:04:17]} 26. e3 {[%clk 0:03:31.7]} 26...
Ne5 {[%clk 0:04:15.8]} 27. Qc2 {[%clk 0:02:55.4]} 27... Bf5 {[%clk 0:04:11.8]}
28. Qd1 {[%clk 0:02:56.6]} 28... Bd3 {[%clk 0:03:53.1]} 29. Nb2 {[%clk
0:02:24.2]} 29... Bxf1 {[%clk 0:03:50.8]} 30. Qxf1 {[%clk 0:02:22.8]} 30... c5
{[%clk 0:03:45.9]} 31. Nd3 {[%clk 0:01:48.6]} 31... Nxd3 {[%clk 0:03:22.1]} 32.
Qxd3 {[%clk 0:01:49.6]} 32... Qe6 {[%clk 0:03:21.7]} 33. e4 {[%clk 0:01:35.8]}
33... d4 {[%clk 0:02:51.9]} 34. Nc4 {[%clk 0:01:24.5]} 34... Rf3 {[%clk
0:02:49.9]} 35. Qd1 {[%clk 0:01:04.3]} 35... Rb8 {[%clk 0:02:46.4]} 36. Nd2
{[%clk 0:00:11.1]} 36... Rc3 {[%clk 0:02:39.5]} 37. Rb1 {[%clk 0:00:12.2]} 37...
Rf8 {[%clk 0:02:38.3]} 38. Qe2 {[%clk 0:00:12.1]} 38... d3 {[%clk 0:02:23.3]}
39. Qe3 {[%clk 0:00:11]} 39... Qf6 {[%clk 0:02:24]} 40. Rf1 {[%clk 0:00:10.7]}
40... Kg7 {[%clk 0:02:15]} 41. e5 {[%clk 0:00:12]} 41... Qxe5 {[%clk 0:02:10.6]}
42. Ne4 {[%clk 0:00:13.4]} 42... Rf3 {[%clk 0:02:09.3]} 43. Qe1 {[%clk
0:00:11.1]} 43... Rc2 {[%clk 0:01:53.9]} 0-1

[Event "GrandPrix_29.05"]
[Site "Chess.com"]
[Date "2020.05.29"]
[Round "7"]
[White "Glek_Igor"]
[Black "Onischuk_V"]
[Result "0-1"]
[WhiteElo "2468"]
[BlackElo "2419"]
[TimeControl "600+2"]
[EndTime "12:31:05 PDT"]
[Termination "Onischuk_V won on time"]

1. e4 {[%clk 0:10:01.9]} 1... d6 {[%clk 0:09:59.2]} 2. d4 {[%clk 0:10:01.8]}
2... Nf6 {[%clk 0:10:00.8]} 3. Nc3 {[%clk 0:10:01.8]} 3... g6 {[%clk 0:10:02.4]}
4. f4 {[%clk 0:10:00.4]} 4... Bg7 {[%clk 0:10:03.6]} 5. Bd3 {[%clk 0:10:01]}
5... O-O {[%clk 0:10:04.6]} 6. Nf3 {[%clk 0:09:58.5]} 6... Na6 {[%clk
0:10:05.2]} 7. O-O {[%clk 0:09:46.1]} 7... c5 {[%clk 0:10:05.8]} 8. d5 {[%clk
0:09:47]} 8... Bg4 {[%clk 0:10:06.8]} 9. a3 {[%clk 0:09:31.9]} 9... Nc7 {[%clk
0:09:59.9]} 10. h3 {[%clk 0:09:20.8]} 10... Bxf3 {[%clk 0:10:00.1]} 11. Qxf3
{[%clk 0:09:21.4]} 11... a6 {[%clk 0:09:58.3]} 12. a4 {[%clk 0:09:00.1]} 12...
b6 {[%clk 0:09:59.1]} 13. Bd2 {[%clk 0:07:42.1]} 13... Rb8 {[%clk 0:09:50.9]}
14. Nd1 {[%clk 0:06:27.1]} 14... b5 {[%clk 0:09:47.2]} 15. axb5 {[%clk
0:06:26.5]} 15... axb5 {[%clk 0:09:48.2]} 16. c3 {[%clk 0:06:27.7]} 16... Ra8
{[%clk 0:09:48.1]} 17. Ne3 {[%clk 0:06:21.5]} 17... Rxa1 {[%clk 0:09:46.1]} 18.
Rxa1 {[%clk 0:06:21]} 18... Qb8 {[%clk 0:09:47.4]} 19. Kh2 {[%clk 0:04:55.4]}
19... Qb7 {[%clk 0:09:41.7]} 20. Rf1 {[%clk 0:04:40.6]} 20... Nd7 {[%clk
0:09:30.2]} 21. h4 {[%clk 0:04:16.1]} 21... Ra8 {[%clk 0:09:30.3]} 22. h5 {[%clk
0:04:15.9]} 22... Ra2 {[%clk 0:09:30]} 23. Bc1 {[%clk 0:04:14.4]} 23... b4
{[%clk 0:09:27.4]} 24. hxg6 {[%clk 0:03:57.3]} 24... hxg6 {[%clk 0:09:27.2]} 25.
c4 {[%clk 0:03:46.9]} 25... Rxb2 {[%clk 0:08:54.9]} 26. Bxb2 {[%clk 0:03:41.5]}
26... Bxb2 {[%clk 0:08:55.8]} 27. e5 {[%clk 0:03:42.5]} 27... dxe5 {[%clk
0:07:54]} 28. f5 {[%clk 0:03:42.2]} 28... g5 {[%clk 0:07:49]} 29. f6 {[%clk
0:02:49.4]} 29... Nxf6 {[%clk 0:07:35.8]} 30. Qf5 {[%clk 0:01:44.6]} 30... Kf8
{[%clk 0:06:39]} 31. Qxg5 {[%clk 0:01:22.3]} 31... e4 {[%clk 0:06:38.5]} 32. Be2
{[%clk 0:00:55.8]} 32... Ke8 {[%clk 0:05:36.5]} 33. Bh5 {[%clk 0:00:37.2]} 33...
Qb8 {[%clk 0:05:11.9]} 34. Kh1 {[%clk 0:00:35.1]} 34... Kd7 {[%clk 0:04:09.5]}
35. Bg4+ {[%clk 0:00:31.7]} 35... Kd8 {[%clk 0:04:04.5]} 36. d6 {[%clk
0:00:24.3]} 36... Nce8 {[%clk 0:04:03.6]} 37. dxe7+ {[%clk 0:00:18.5]} 37...
Kxe7 {[%clk 0:04:03.6]} 38. Nd5+ {[%clk 0:00:17]} 38... Kf8 {[%clk 0:03:09.1]}
39. Qh6+ {[%clk 0:00:12.2]} 39... Ng7 {[%clk 0:03:10.3]} 40. Nxf6 {[%clk
0:00:11.6]} 40... Qg3 {[%clk 0:02:52.7]} 41. Qh8+ {[%clk 0:00:07.6]} 41... Ke7
{[%clk 0:02:52.9]} 42. Qxg7 {[%clk 0:00:08.9]} 42... Qh4+ {[%clk 0:02:49.8]} 43.
Bh3 {[%clk 0:00:09.7]} 43... Bxf6 {[%clk 0:02:51]} 44. Qg8 {[%clk 0:00:08.3]}
44... b3 {[%clk 0:02:48.1]} 45. Qc8 {[%clk 0:00:08.1]} 45... b2 {[%clk
0:02:45.4]} 46. Qxc5+ {[%clk 0:00:08.8]} 46... Ke8 {[%clk 0:02:46.3]} 47. Qc8+
{[%clk 0:00:07.5]} 47... Ke7 {[%clk 0:02:47.3]} 48. Qc5+ {[%clk 0:00:08.1]}
48... Ke8 {[%clk 0:02:48.4]} 49. Qb5+ {[%clk 0:00:08.5]} 49... Kf8 {[%clk
0:02:49.5]} 50. Qc5+ {[%clk 0:00:07.9]} 50... Kg7 {[%clk 0:02:49.6]} 51. Qf5
{[%clk 0:00:07.8]} 51... e3 {[%clk 0:02:45.9]} 52. Qd3 {[%clk 0:00:07.9]} 52...
Qg3 {[%clk 0:02:44]} 0-1